bitfinex/quotes_ETHUSD_20241207
["timestamp","ask_amount","ask_price","bid_price","bid_amount"]
[1733599637699,2.15325644,4017.2,4016.8,1.62028452]
[1733599637896,1.04297171,4017.3,4016.8,1.62028452]
[1733599637897,0.8611876,4017.1,4016.8,1.62028452]
[1733599638093,1.04297171,4017.3,4016.8,1.62028452]
[1733599638323,3.19669516,4017.2,4016.8,1.62028452]
[1733599638527,0.86148952,4017.1,4016.8,1.62028452]
[1733599638711,1.04297171,4017.2,4016.8,1.62028452]
[1733599638930,0.86149412,4017.1,4016.8,1.62028452]
[1733599639128,1.04297171,4017.2,4016.8,1.62028452]
[1733599639433,0.86158064,4017.1,4016.8,1.62028452]
[1733599639743,1.04297171,4017.2,4016.8,1.62028452]
[1733599639911,2.15397107,4017.1,4016.8,1.62028452]
[1733599640115,0.86158895,4017.0,4016.8,1.62028452]
[1733599640430,1.04297171,4017.2,4016.8,1.62028452]
[1733599640632,2.1542434,4017.1,4016.8,1.62028452]
[1733599640847,0.86169879,4017.0,4016.8,1.62028452]
[1733599641131,1.04297171,4017.2,4016.8,1.62028452]
[1733599641332,2.15452533,4017.1,4016.8,1.62028452]
[1733599641497,0.86181013,4017.0,4016.8,1.62028452]
[1733599641698,1.04297171,4017.1,4016.8,1.62028452]
[1733599641924,0.86181577,4017.0,4016.8,1.62028452]
[1733599642133,1.04297171,4017.2,4016.8,1.62028452]
[1733599642321,1.56473568,4017.3,4016.8,1.62028452]
[1733599642322,3.19778652,4017.1,4016.8,1.62028452]
[1733599642523,0.86192592,4017.0,4016.8,1.62028452]
[1733599642708,1.04297171,4017.1,4016.8,1.62028452]
[1733599642912,0.86193616,4017.0,4016.8,1.62028452]
[1733599643122,1.04297171,4017.1,4016.8,1.62028452]
[1733599643311,2.15517528,4017.0,4016.8,1.62028452]
[1733599643635,1.04297171,4017.1,4016.8,1.62028452]
[1733599643834,2.15519238,4017.0,4016.8,1.62028452]
[1733599644009,1.04297171,4017.1,4016.7,0.7825]
[1733599644210,1.56473568,4016.9,4016.4,1.07028452]
[1733599644399,1.0428743,4016.7,4016.4,1.07028452]
[1733599644603,3.19817739,4016.6,4016.4,1.07028452]
[1733599644836,0.86208006,4016.5,4016.4,1.07028452]
[1733599645137,2.15573584,4016.5,4016.4,1.07028452]
[1733599645843,2.15590552,4016.5,4016.4,1.62028452]
[1733599646146,3.19877982,4016.5,4016.4,1.62028452]
[1733599650415,2.15590552,4016.5,4016.4,1.62028452]
[1733599650658,1.04337279,4016.5,4016.4,3.36313452]
[1733599650818,0.86273801,4016.5,4016.4,3.77863797]
[1733599651017,0.86273801,4016.5,4016.4,4.54833797]
[1733599651217,0.8627363,4016.5,4016.4,4.54833797]
[1733599652621,2.15692746,4016.5,4016.4,4.54833797]
[1733599652956,0.8627363,4016.5,4016.4,4.13283452]
[1733599654258,2.15714029,4016.5,4016.4,4.13283452]
[1733599654823,0.8627363,4016.5,4016.4,5.20311904]
[1733599655059,1.04337279,4016.8,4016.6,0.7697]
[1733599655231,0.8628755,4016.7,4016.6,3.06246]
[1733599655431,0.8628755,4016.7,4016.6,3.70501945]
[1733599655658,1.04337279,4016.8,4016.7,2.29272]
[1733599655969,3.20058837,4016.8,4016.7,2.29272]
[1733599656323,2.15721558,4016.8,4016.7,2.29272]
[1733599656581,3.20077022,4016.8,4016.7,2.29272]
[1733599657026,2.15721558,4016.8,4016.7,2.29272]
[1733599657872,3.20077022,4016.8,4016.7,2.29272]
[1733599658456,3.20077022,4016.8,4016.7,3.66924652]
[1733599658863,2.15721558,4016.8,4016.7,3.66924652]
[1733599659234,2.15721558,4016.8,4016.7,4.48204652]
[1733599660468,2.15715475,4016.8,4016.7,4.48204652]
[1733599660672,2.60880393,4017.4,4016.9,1.74263]
[1733599660673,1.04355464,4017.0,4016.9,1.74263]
[1733599660968,1.04355464,4017.2,4017.1,2.29255]
[1733599661128,1.04355464,4017.2,4017.1,3.36283452]
[1733599661129,3.20048012,4017.2,4017.1,3.36283452]
[1733599661327,2.15692548,4017.2,4017.1,3.36283452]
[1733599661786,3.20048012,4017.2,4017.1,3.36283452]
[1733599661948,3.20048012,4017.2,4017.1,3.99947744]
[1733599662544,2.15692548,4017.2,4017.1,1.62028452]
[1733599663159,3.72166116,4017.2,4017.1,1.62028452]
[1733599663474,3.88258912,4017.2,4017.1,1.62028452]
[1733599663676,5.96870322,4017.2,4016.8,1.07028452]
[1733599663969,1.56532707,4016.9,4016.8,1.07028452]
[1733599664171,3.72225255,4016.9,4016.8,1.07028452]
[1733599664751,3.88272724,4016.9,4016.8,1.07028452]
[1733599665237,3.72227087,4016.9,4016.8,1.62028452]
[1733599665570,3.72226716,4016.9,4016.8,1.62028452]
[1733599666075,3.88273932,4016.9,4016.8,1.62028452]
[1733599666231,3.722278,4016.9,4016.8,1.62028452]
[1733599668374,3.88276072,4016.9,4016.8,1.62028452]
[1733599670174,3.88280448,4016.9,4016.8,1.62028452]
[1733599670479,3.72274885,4016.9,4016.8,1.95659297]
[1733599670677,2.1573354,4016.9,4016.8,4.13926452]
[1733599670887,3.20090408,4016.9,4016.8,4.13926452]
[1733599671180,2.1573354,4016.9,4016.8,4.13926452]
[1733599671697,3.20090408,4016.9,4016.8,4.13926452]
[1733599672488,2.1573354,4016.9,4016.8,4.13926452]
[1733599672700,0.86293416,4016.9,4016.8,4.55319097]
[1733599672867,1.04356868,4017.2,4016.9,0.55]
[1733599673065,1.04356868,4017.3,4017.2,1.7425]
[1733599673295,1.04356868,4017.4,4017.3,2.29246]
[1733599673454,3.20057083,4017.4,4017.3,2.70829445]
[1733599675176,3.20016205,4017.4,4017.3,2.70829445]
[1733599675558,2.15659337,4017.4,4017.3,2.70829445]
[1733599676667,2.15659337,4017.4,4017.3,1.07028452]
[1733599676855,3.72200682,4017.4,4017.3,1.62028452]
[1733599677055,2.15659337,4017.4,4017.3,1.62028452]
[1733599677777,3.72200682,4017.4,4017.3,1.62028452]
[1733599678297,3.88171934,4017.4,4017.3,1.62028452]
[1733599679379,0.7985,4017.3,4017.1,0.55]
[1733599679577,3.88183019,4017.2,4017.1,0.55]
[1733599679769,5.96893295,4017.2,4016.9,0.55]
[1733599679952,1.56488854,4017.0,4016.9,0.55]
[1733599680156,3.72148191,4017.0,4016.9,0.55]
[1733599680756,3.72146135,4017.0,4016.9,0.55]
[1733599680968,3.8818613,4017.0,4016.9,0.55]
[1733599681167,3.88186648,4017.0,4016.9,0.55]
[1733599681369,3.72144283,4017.0,4016.9,2.29263]
[1733599681578,2.15659337,4017.0,4016.9,2.29263]
[1733599682836,0.86263735,4017.0,4016.9,2.29263]
[1733599682967,2.15654483,4017.0,4016.9,2.29263]
[1733599683166,1.0432093,4017.0,4016.9,2.29263]
[1733599683472,3.1997989,4017.0,4016.9,2.29263]
[1733599683899,2.1565896,4017.0,4016.9,0.55]
[1733599685368,3.19987083,4017.0,4016.9,0.55]
[1733599686193,2.1565896,4017.0,4016.9,0.55]
[1733599687105,3.72143906,4017.0,4016.9,0.55]
[1733599688285,3.72157797,4017.0,4016.9,0.55]
[1733599689610,3.72157797,4017.0,4016.8,1.07028452]
[1733599689777,3.20005093,4016.9,4016.8,1.62028452]
[1733599690589,2.15672851,4016.9,4016.8,1.62028452]
[1733599691092,3.20007957,4016.9,4016.8,1.62028452]
[1733599692325,2.15672851,4016.9,4016.8,1.62028452]
[1733599694525,3.72157797,4016.9,4016.8,1.62028452]
[1733599694706,2.15672851,4016.9,4016.8,1.62028452]
[1733599695025,3.72157797,4016.9,4016.8,1.62028452]
[1733599695234,2.15672851,4016.9,4016.8,1.62028452]
[1733599695598,2.15672851,4016.9,4016.8,3.36296452]
[1733599696537,3.72157797,4016.9,4016.8,3.36296452]
[1733599696692,2.15672851,4016.9,4016.8,3.36296452]
[1733599697403,3.72157797,4016.9,4016.8,3.36296452]
[1733599697992,3.72243011,4016.9,4016.8,3.36296452]
[1733599698391,2.15758065,4016.9,4016.8,3.36296452]
[1733599698595,3.72243011,4016.9,4016.8,3.36296452]
[1733599701818,3.88381799,4016.9,4016.8,3.36296452]
[1733599702152,3.72331996,4016.9,4016.8,3.36296452]
[1733599702818,3.72332916,4016.9,4016.8,3.36296452]
[1733599703151,3.72351873,4016.9,4016.8,3.36296452]
[1733599703356,3.88400422,4016.9,4016.8,1.62028452]
[1733599705766,5.97110698,4016.9,4016.8,1.62028452]
[1733599705926,3.88400422,4016.9,4016.8,1.62028452]
[1733599708022,3.88397199,4016.9,4016.8,1.62028452]
[1733599709666,5.97107475,4016.9,4016.8,1.62028452]
[1733599712935,5.97091646,4016.9,4016.8,1.62028452]
[1733599713865,5.97091646,4016.9,4016.5,1.62028452]
[1733599714068,1.56557252,4016.7,4016.6,0.55]
[1733599714279,3.72316355,4016.7,4016.6,0.55]
[1733599715132,3.72316355,4016.7,4016.5,0.55]
[1733599715337,2.08710276,4016.9,4016.2,2.55003]
[1733599715338,3.72316355,4016.6,4016.3,0.55]
[1733599715535,1.04370276,4016.4,4016.3,0.55]
[1733599715838,3.20129379,4016.4,4016.3,0.55]
[1733599716983,3.20129379,4016.4,4016.3,2.29289]
[1733599720048,2.15759103,4016.4,4016.3,2.29289]
[1733599721295,3.20122915,4016.4,4016.3,2.29289]
[1733599721502,2.15759103,4016.4,4016.3,2.29289]
[1733599723502,3.72316355,4016.4,4016.3,2.29289]
[1733599726704,3.72316355,4016.4,4016.1,1.74297]
[1733599726905,3.72353909,4016.3,4016.2,0.55]
[1733599727104,3.72353909,4016.3,4016.0,0.55]
[1733599727307,1.0439822,4016.1,4015.9,1.62028452]
[1733599727513,3.20157323,4016.0,4015.9,1.62028452]
[1733599727667,3.20190623,4016.0,4015.9,1.62028452]
[1733599728010,3.20190623,4016.0,4015.9,2.29307]
[1733599728311,3.20184071,4016.0,4015.9,3.36335452]
[1733599728505,3.20176316,4016.0,4015.9,3.36335452]
[1733599729878,3.20176316,4016.0,4015.9,2.81335452]
[1733599730098,3.20167215,4016.0,4015.9,2.81335452]
[1733599730428,2.15792403,4016.0,4015.9,2.81335452]
[1733599730566,3.20156397,4016.0,4015.9,2.81335452]
[1733599731993,3.20156397,4016.0,4015.9,3.36335452]
[1733599732417,3.20156397,4016.0,4015.9,4.12395452]
[1733599732720,2.1571085,4016.0,4015.9,4.12395452]
[1733599733293,2.08710276,4016.5,4016.1,2.50358]
[1733599733294,1.04363994,4016.4,4016.1,2.50358]
[1733599733521,0.86275434,4016.3,4016.2,2.29294]
[1733599734600,0.86275434,4016.3,4016.2,3.36322452]
[1733599735630,0.86275434,4016.3,4016.2,2.29294]
[1733599735840,0.86275434,4016.3,4016.2,3.36322452]
[1733599735986,2.15700251,4016.3,4016.2,3.36322452]
[1733599736807,0.86275434,4016.3,4016.2,3.36322452]
[1733599737626,0.8628663,4016.3,4016.2,3.36322452]
[1733599738698,1.04363994,4016.6,4016.5,1.74281]
[1733599738922,2.15718407,4016.6,4016.5,2.29281]
[1733599739131,2.15718407,4016.6,4016.5,3.36309452]
[1733599739132,0.86287363,4016.6,4016.5,3.36309452]
[1733599741126,1.04363994,4016.8,4016.5,3.36309452]
[1733599741127,1.04363994,4016.8,4016.7,1.74272]
[1733599741426,3.20079414,4016.8,4016.7,2.29272]
[1733599743035,3.20069067,4016.8,4016.7,2.29272]
[1733599744508,2.1571542,4016.8,4016.7,2.29272]
[1733599745292,3.20068889,4016.8,4016.7,2.29272]
[1733599745500,1.04353469,4017.1,4017.0,1.74259]
[1733599745807,1.04353469,4017.1,4017.0,4.16797452]
[1733599745808,0.86271755,4017.1,4017.0,4.16797452]
[1733599746016,1.04353469,4017.5,4017.1,0.55]
[1733599746217,1.04353469,4017.5,4017.4,2.29242]
[1733599746391,3.20015559,4017.5,4017.4,2.29242]
[1733599746745,2.1566209,4017.5,4017.4,2.29242]
[1733599747631,2.1566209,4017.5,4017.3,0.55]
[1733599747632,2.97543498,4017.5,4017.3,0.55]
[1733599747802,2.97543498,4017.5,4016.7,1.74272]
[1733599747803,0.86264836,4017.4,4017.2,1.74246]
[1733599748129,1.86303469,4017.5,4017.3,2.29246]
[1733599748329,0.86221429,4017.4,4017.3,2.29246]
[1733599748838,2.15532894,4017.4,4017.1,2.29254]
[1733599748990,3.19890393,4017.3,4017.1,2.29254]
[1733599749350,2.15539773,4017.2,4017.1,2.29254]
[1733599749632,2.1552857,4017.2,4017.1,2.29254]
[1733599749789,2.38544806,4017.5,4017.3,2.29246]
[1733599749790,1.86303469,4017.5,4017.3,2.29246]
[1733599749993,2.15503335,4017.4,4017.3,2.29246]
[1733599750527,0.86201334,4017.4,4017.3,2.29246]
[1733599751560,1.86303469,4017.5,4017.4,0.55]
[1733599751771,4.01745454,4017.5,4017.4,0.55]
[1733599752767,2.97391985,4017.5,4017.4,0.55]
[1733599753678,2.97391985,4017.5,4016.4,1.07028452]
[1733599753679,2.97391985,4017.5,4017.0,2.29255]
[1733599753879,0.8195,4017.3,4016.9,2.29262]
[1733599754245,0.86164246,4017.2,4016.9,2.29262]
[1733599754577,0.8195,4017.3,4016.9,2.29262]
[1733599754762,2.1540794,4017.2,4016.9,2.29262]
[1733599754961,0.86163176,4017.1,4016.9,2.29262]
[1733599755271,1.86303469,4017.3,4016.9,2.29262]
[1733599755473,0.8616182,4017.2,4016.9,2.29262]
[1733599755687,1.86303469,4017.3,4016.8,0.55]
[1733599755863,2.15398678,4017.2,4017.0,0.55]
[1733599756049,1.86303469,4017.3,4017.1,1.74255]
[1733599756253,0.86157814,4017.2,4017.1,2.29255]
[1733599756492,0.8195,4017.3,4017.2,1.7425]
[1733599756657,1.04353469,4017.6,4017.4,1.74242]
[1733599756997,1.04353469,4017.7,4017.5,0.55]
[1733599757291,0.86143349,4017.6,4017.5,0.55]
[1733599757448,1.04353469,4017.8,4017.5,0.55]
[1733599757648,0.86126524,4017.7,4017.5,0.55]
[1733599757949,1.04353469,4017.8,4017.5,0.55]
[1733599758178,2.15320917,4017.7,4017.5,0.55]
[1733599758415,0.8612837,4017.6,4017.5,0.55]
[1733599758579,1.04353469,4017.8,4017.6,1.7423]
[1733599758785,1.04353469,4017.8,4017.6,2.2923]
[1733599759093,0.86117593,4017.7,4017.6,2.2923]
[1733599759294,0.8195,4018.0,4017.6,2.2923]
[1733599759295,1.86303469,4018.0,4017.6,2.2923]
[1733599759506,0.8611569,4017.9,4017.6,2.2923]
[1733599759712,0.8195,4018.0,4017.6,2.2923]
[1733599759909,0.86101164,4017.9,4017.6,2.2923]
[1733599760221,0.8195,4018.0,4017.6,2.2923]
[1733599760420,0.86101048,4017.9,4017.6,2.2923]
[1733599760624,0.8195,4018.0,4017.6,2.2923]
[1733599760784,0.86088007,4017.9,4017.6,2.2923]
[1733599760981,0.8195,4018.0,4017.6,2.2923]
[1733599761619,0.8195,4018.0,4017.5,0.55]
[1733599762015,0.8195,4018.0,4017.7,2.29226]
[1733599762524,0.8195,4018.0,4017.9,0.55]
[1733599762734,1.68016575,4018.0,4017.9,0.55]
[1733599763021,0.8195,4018.0,4017.9,0.55]
[1733599766039,0.8195,4018.0,4017.6,0.55]
[1733599766242,0.8195,4018.0,4017.6,2.29233]
[1733599768910,0.8195,4018.0,4017.4,1.07028452]
[1733599768911,0.8195,4018.0,4017.4,0.55]
[1733599769730,0.8195,4018.0,4017.3,0.55]
[1733599769925,0.8195,4018.0,4017.5,0.55]
[1733599773020,0.8195,4018.0,4017.5,2.29235]
[1733599774177,0.8195,4018.0,4017.8,0.55]
[1733599775250,0.8195,4018.0,4017.6,0.55]
[1733599775451,0.86066839,4017.9,4017.3,1.74245]
[1733599775673,1.86303469,4018.0,4017.4,0.55]
[1733599775877,2.15172888,4017.9,4017.4,2.29241]
[1733599776050,1.86303469,4018.0,4017.4,2.29241]
[1733599776258,0.8195,4018.0,4017.2,0.55]
[1733599776476,0.8195,4018.0,4017.4,0.55]
[1733599776689,0.86086584,4017.9,4017.4,0.55]
[1733599776853,0.8195,4018.0,4017.4,0.55]
[1733599777561,0.86105605,4017.9,4017.4,0.55]
[1733599777755,1.86303469,4018.0,4017.4,0.55]
[1733599777955,0.86106906,4017.9,4017.4,0.55]
[1733599778252,0.86107435,4017.8,4017.2,0.55]
[1733599778467,1.86303469,4018.0,4017.2,0.55]
[1733599778665,3.19683047,4017.9,4017.2,0.55]
[1733599778857,0.86131831,4017.8,4017.2,0.55]
[1733599779062,0.86132015,4017.7,4017.2,0.55]
[1733599779366,0.86132015,4017.7,4016.5,1.74279]
[1733599779367,0.7511,4017.8,4016.5,1.74279]
[1733599779552,2.15355239,4017.7,4016.8,2.81292452]
[1733599779749,2.15355239,4017.6,4016.8,2.81292452]
[1733599780064,0.86134044,4017.5,4016.8,2.81292452]
[1733599780265,1.04353469,4017.6,4016.8,2.81292452]
[1733599780470,0.86152529,4017.5,4016.8,2.81292452]
[1733599780705,1.04353469,4017.6,4016.8,2.81292452]
[1733599780909,0.86163097,4017.5,4016.9,0.55]
[1733599781196,2.31704806,4017.8,4016.9,0.55]
[1733599781197,1.04353469,4017.6,4016.9,0.55]
[1733599781397,0.86164181,4017.5,4016.9,0.55]
[1733599781634,1.04353469,4017.6,4016.9,0.55]
[1733599781801,2.15448874,4017.5,4016.9,0.55]
[1733599782006,1.04353469,4017.6,4016.9,0.55]
[1733599782235,2.15447537,4017.5,4016.9,0.55]
[1733599782527,0.8619555,4017.4,4016.9,0.55]
[1733599782733,1.04353469,4017.5,4016.9,0.55]
[1733599782897,2.15501137,4017.4,4016.9,0.55]
[1733599783099,1.04353469,4017.5,4016.9,0.55]
[1733599783296,2.15501604,4017.4,4016.9,0.55]
[1733599783531,1.04353469,4017.5,4016.9,0.55]
[1733599783690,2.15540923,4017.4,4016.9,0.55]
[1733599784034,0.86217044,4017.3,4016.9,2.29263]
[1733599784328,1.04353469,4017.6,4016.9,2.29263]
[1733599784541,3.19890005,4017.5,4017.1,2.81282452]
[1733599784707,0.86214614,4017.4,4017.2,0.55]
[1733599785041,1.04353469,4017.6,4017.2,0.55]
[1733599785241,3.19935422,4017.5,4017.2,0.55]
[1733599785540,0.86232781,4017.4,4017.2,0.55]
[1733599785714,0.86245669,4017.3,4017.2,0.55]
[1733599786121,1.04353469,4017.5,4017.2,0.55]
[1733599786323,2.15611823,4017.4,4017.2,0.55]
[1733599786645,1.04353469,4017.5,4017.2,0.55]
[1733599786847,2.15616878,4017.4,4017.2,0.55]
[1733599787148,1.04353469,4017.5,4017.2,0.55]
[1733599787450,2.15617271,4017.4,4017.2,0.55]
[1733599787645,1.04353469,4017.5,4017.2,0.55]
[1733599787946,3.19998967,4017.4,4017.2,0.55]
[1733599788241,0.86258202,4017.3,4017.2,0.55]
[1733599789107,2.15668189,4017.3,4017.2,0.55]
[1733599789305,3.20021658,4017.3,4017.2,0.55]
[1733599790049,3.20080542,4017.3,4017.2,0.55]
[1733599790207,2.15727073,4017.3,4017.2,0.55]
[1733599790541,3.20074039,4017.3,4017.2,0.55]
[1733599792845,2.1572057,4017.3,4017.2,0.55]
[1733599793032,3.20074039,4017.3,4017.2,0.55]
[1733599793920,2.1572057,4017.3,4017.2,0.55]
[1733599795019,2.15768178,4017.3,4017.2,0.55]
[1733599795858,3.20121647,4017.3,4017.2,0.55]
[1733599796064,2.15768178,4017.3,4017.2,0.55]
[1733599796552,0.86307271,4017.3,4017.2,2.2925]
[1733599797827,2.15775026,4017.3,4017.2,2.2925]
[1733599798152,2.15775503,4017.3,4017.2,2.2925]
[1733599798450,2.15775503,4017.3,4017.2,0.55]
[1733599799551,3.20128972,4017.3,4017.2,0.55]
[1733599800145,2.15775503,4017.3,4017.2,0.55]
[1733599800487,2.15775503,4017.3,4016.6,1.74273]
[1733599800488,2.97065503,4017.3,4016.9,0.55]
[1733599800685,2.97065503,4017.3,4016.8,0.55]
[1733599800686,1.04404137,4017.1,4016.8,0.55]
[1733599800985,0.86307271,4017.0,4016.8,0.55]
[1733599801191,1.04404137,4017.1,4016.8,0.55]
[1733599801341,2.15819972,4017.0,4016.8,0.55]
[1733599801542,1.04404137,4017.1,4016.8,0.55]
[1733599801855,0.86327958,4017.0,4016.8,2.29267]
[1733599802037,1.04404137,4017.1,4017.0,1.62028452]
[1733599802243,2.1583704,4017.1,4017.0,1.62028452]
[1733599802585,3.20241177,4017.1,4017.0,1.62028452]
[1733599803158,3.20245197,4017.1,4017.0,1.62028452]
[1733599803354,2.1584106,4017.1,4017.0,1.62028452]
[1733599804544,2.1584106,4017.1,4016.6,0.55]
[1733599804877,2.15832016,4017.0,4016.6,2.29276]
[1733599805177,0.86336424,4016.9,4016.6,2.29276]
[1733599805393,1.04404137,4017.1,4016.6,2.29276]
[1733599805546,0.86326502,4017.0,4016.6,2.29276]
[1733599805882,1.04404137,4017.1,4016.6,2.29276]
[1733599806191,0.86325992,4017.0,4016.6,2.29276]
[1733599806389,1.04404137,4017.2,4016.6,2.29276]
[1733599806559,3.20214645,4017.1,4016.6,2.29276]
[1733599806876,2.15812307,4017.0,4016.6,2.29276]
[1733599807096,1.04404137,4017.1,4016.6,2.29276]
[1733599807285,2.15813513,4017.0,4016.6,2.29276]
[1733599807450,1.04404137,4017.1,4016.6,2.29276]
[1733599807645,0.86321477,4017.0,4016.6,2.29276]
[1733599807848,1.04404137,4017.2,4016.6,2.29276]
[1733599808094,2.15802226,4017.1,4016.9,0.55]
[1733599808290,0.8632089,4017.0,4016.9,0.55]
[1733599808481,0.8129,4017.3,4016.9,0.55]
[1733599808482,1.04404137,4017.3,4017.0,1.74259]
[1733599808676,0.86318901,4017.2,4017.1,0.55]
[1733599808878,2.15793556,4017.2,4017.1,0.55]
[1733599809048,2.15793556,4017.2,4017.1,1.74255]
[1733599809248,2.15793556,4017.2,4017.1,2.604555]
[1733599809553,3.20197693,4017.2,4017.1,2.604555]
[1733599809753,3.20197693,4017.2,4017.1,3.67483952]
[1733599809948,2.15793556,4017.2,4017.1,3.67483952]
[1733599810385,2.15795335,4017.2,4017.1,3.67483952]
[1733599810778,0.86318901,4017.2,4017.1,3.67483952]
[1733599810984,2.1579779,4017.2,4017.1,3.67483952]
[1733599811659,2.15800234,4017.2,4017.1,3.67483952]
[1733599811856,0.86318901,4017.2,4017.1,3.67483952]
[1733599812157,0.83818901,4017.2,4017.1,3.67483952]
[1733599812355,1.04404137,4017.4,4017.2,0.55]
[1733599812570,1.29483467,4017.3,4017.2,0.55]
[1733599812766,1.29485555,4017.3,4017.2,0.55]
[1733599813099,1.04404137,4017.4,4017.2,2.2925]
[1733599813282,2.33890979,4017.3,4017.2,2.2925]
[1733599813594,1.29486842,4017.3,4017.2,2.2925]
[1733599813997,2.33890979,4017.3,4017.2,0.55]
[1733599814162,2.33890979,4017.3,4016.8,1.07028452]
[1733599814163,1.29486842,4017.3,4016.8,1.07028452]
[1733599814362,1.29486842,4017.2,4016.8,1.07028452]
[1733599814607,1.04408237,4017.2,4016.8,1.07028452]
[1733599814958,1.04408237,4017.3,4016.8,1.07028452]
[1733599815157,1.29503978,4017.2,4016.8,1.07028452]
[1733599815371,1.04408237,4017.3,4016.8,1.07028452]
[1733599815674,2.33914949,4017.2,4016.8,1.07028452]
[1733599815866,2.36364806,4017.4,4016.8,1.07028452]
[1733599815867,1.04408237,4017.3,4016.8,1.07028452]
[1733599816172,2.33917578,4017.2,4016.9,0.55]
[1733599816375,1.04408237,4017.2,4016.9,0.55]
[1733599817266,1.29516618,4017.1,4016.9,0.55]
[1733599817472,1.04408237,4017.2,4016.9,0.55]
[1733599817774,1.29520395,4017.1,4016.9,0.55]
[1733599817973,1.04408237,4017.1,4016.9,0.55]
[1733599818909,1.04408237,4017.2,4016.9,0.55]
[1733599819196,1.56632625,4017.0,4016.9,0.55]
[1733599819357,2.86162066,4017.0,4016.9,0.55]
[1733599819562,3.02226093,4017.0,4016.9,0.55]
[1733599820673,5.10936369,4017.0,4016.9,0.55]
[1733599821773,3.02226093,4017.0,4016.9,0.55]
[1733599821963,5.10936369,4017.0,4016.9,0.55]
[1733599822161,3.02226093,4017.0,4016.9,0.55]
[1733599822592,1.72696652,4017.0,4016.9,0.55]
[1733599822905,3.02195939,4017.0,4016.9,0.55]
[1733599824765,5.10906215,4017.0,4016.9,0.55]
[1733599824961,3.02195939,4017.0,4016.9,0.55]
[1733599825361,5.10906215,4017.0,4016.5,1.62028452]
[1733599825562,1.56591818,4016.7,4016.5,1.62028452]
[1733599825865,2.86091105,4016.6,4016.5,1.62028452]
[1733599826095,3.02153424,4016.6,4016.5,1.62028452]
[1733599826405,3.02153424,4016.6,4016.3,0.55]
[1733599826406,2.86061354,4016.6,4016.3,0.55]
[1733599826702,1.04374748,4016.4,4016.3,1.62028452]
[1733599826906,2.33874035,4016.4,4016.3,1.62028452]
[1733599827399,2.33874035,4016.4,4016.3,1.07028452]
[1733599827598,2.11672839,4016.4,4016.0,1.07028452]
[1733599827808,2.33788954,4016.3,4016.0,1.07028452]
[1733599827959,0.8224,4016.4,4016.0,1.07028452]
[1733599827960,2.33788954,4016.2,4016.0,1.07028452]
[1733599828159,1.04356115,4016.3,4016.0,1.07028452]
[1733599828396,1.29401619,4016.2,4016.0,1.07028452]
[1733599828601,1.04356115,4016.3,4016.0,1.07028452]
[1733599828806,1.2939918,4016.2,4016.1,0.55]
[1733599829160,1.04356115,4016.3,4015.8,0.55]
[1733599829377,1.29372067,4016.2,4015.8,0.55]
[1733599829573,1.04356115,4016.3,4015.7,0.55]
[1733599829803,1.29370328,4016.2,4015.9,0.55]
[1733599830006,1.04356115,4016.3,4015.9,0.55]
[1733599830391,1.29344068,4016.2,4015.9,0.55]
[1733599830738,1.04356115,4016.3,4015.9,0.55]
[1733599830869,1.86596115,4016.4,4015.9,0.55]
[1733599831195,1.29340637,4016.3,4015.9,0.55]
[1733599831372,1.86596115,4016.4,4015.9,1.62028452]
[1733599831570,1.29320298,4016.3,4015.9,1.62028452]
[1733599831767,1.29323915,4016.2,4015.9,1.62028452]
[1733599832014,1.04356115,4016.3,4015.9,1.62028452]
[1733599832170,0.86200723,4016.2,4015.9,1.62028452]
[1733599832367,1.86596115,4016.4,4015.9,1.07028452]
[1733599832605,1.04356115,4016.2,4015.6,2.49419]
[1733599832809,2.15499378,4016.1,4015.8,1.07028452]
[1733599833102,0.86199751,4016.0,4015.8,1.07028452]
[1733599833334,1.04356115,4016.2,4015.8,1.07028452]
[1733599833535,2.15461422,4016.1,4015.8,1.07028452]
[1733599833742,0.86182892,4016.0,4015.8,1.07028452]
[1733599833938,1.04356115,4016.2,4015.8,1.07028452]
[1733599834141,0.86182515,4016.1,4015.8,1.07028452]
[1733599834314,1.04356115,4016.2,4015.8,0.55]
[1733599834513,2.15422776,4016.1,4015.8,0.55]
[1733599834727,0.86169114,4016.0,4015.8,0.55]
[1733599835042,1.04356115,4016.1,4015.8,0.55]
[1733599835243,0.86168475,4016.0,4015.8,0.55]
[1733599835411,1.04356115,4016.2,4015.8,0.55]
[1733599835738,2.15383136,4016.1,4015.9,1.07028452]
[1733599835943,1.04356115,4016.2,4015.9,1.07028452]
[1733599836101,1.04356115,4016.2,4015.8,1.7431]
[1733599836102,0.86150451,4016.1,4015.8,1.7431]
[1733599836300,1.04356115,4016.2,4015.8,2.81338452]
[1733599836528,1.04356115,4016.3,4015.8,2.81338452]
[1733599836701,2.15341113,4016.2,4015.8,2.81338452]
[1733599836900,0.86137066,4016.1,4015.8,2.81338452]
[1733599837103,1.04356115,4016.3,4015.8,1.07028452]
[1733599837329,2.15321512,4016.2,4015.9,1.74306]
[1733599837525,1.04356115,4016.3,4015.9,1.74306]
[1733599837835,2.15316857,4016.2,4015.9,1.74306]
[1733599838135,0.86126743,4016.1,4015.9,1.74306]
[1733599838344,1.04356115,4016.2,4015.9,1.74306]
[1733599838638,2.38802067,4016.4,4015.9,1.74306]
[1733599838639,0.86119563,4016.1,4015.9,1.74306]
[1733599838814,1.04356115,4016.3,4015.8,1.07028452]
[1733599839011,0.86116576,4016.2,4016.1,3.36326452]
[1733599839257,1.04356115,4016.7,4016.2,0.55]
[1733599839537,1.56562067,4016.9,4016.7,1.74272]
[1733599839538,1.04356115,4016.9,4016.7,1.74272]
[1733599839746,1.04356115,4017.0,4016.7,1.74269]
[1733599839915,0.8224,4017.1,4016.8,1.74268]
[1733599839916,0.86097683,4016.9,4016.8,1.74268]
[1733599840114,1.86596115,4017.1,4016.8,1.74268]
[1733599840308,2.15247194,4017.0,4016.8,1.74268]
[1733599840502,1.86596115,4017.1,4016.8,1.74268]
[1733599840704,2.15254372,4017.0,4016.6,1.74276]
[1733599840937,1.81596115,4017.1,4016.6,1.74276]
[1733599841138,2.15255483,4017.0,4016.6,1.74276]
[1733599841449,0.86106172,4016.9,4016.6,1.74276]
[1733599841659,1.81596115,4017.1,4016.6,1.74276]
[1733599841851,2.1526556,4017.0,4016.6,1.74276]
[1733599842035,0.86106224,4016.9,4016.6,1.74276]